fUSD/lending_fUSD_20250123
["ID","MTS","AMOUNT","RATE_DAILY","PERIOD"]
[350160985,1737663036374,-500.0,0.00016553,2]
[350160987,1737663036383,-249.037796,0.00016553,2]
[350160989,1737663036393,-500.0,0.00016553,2]
[350160991,1737663036402,-500.0,0.00016553,2]
[350160993,1737663036411,-500.0,0.00016553,2]
[350160995,1737663036419,-500.0,0.00016553,2]
[350160997,1737663036428,-500.0,0.00016553,2]
[350160999,1737663036438,-500.0,0.00016553,2]
[350161001,1737663036448,-500.0,0.00016553,2]
[350161004,1737663036462,-500.0,0.00016553,2]
[350161006,1737663036471,-500.0,0.00016553,2]
[350161008,1737663036481,-500.0,0.00016553,2]
[350161009,1737663036491,-500.0,0.00016553,2]
[350161011,1737663036499,-500.0,0.00016553,2]
[350161014,1737663036509,-500.0,0.00016553,2]
[350161016,1737663036518,-500.0,0.00016553,2]
[350161017,1737663036527,-500.0,0.00016553,2]
[350161020,1737663036537,-500.0,0.00016553,2]
[350161022,1737663036546,-500.0,0.00016553,2]
[350161024,1737663036555,-500.0,0.00016553,2]
[350161026,1737663036567,-500.0,0.00016553,2]
[350161027,1737663036576,-500.0,0.00016553,2]
[350161029,1737663036585,-500.0,0.00016553,2]
[350161032,1737663036597,-500.0,0.00016553,2]
[350161033,1737663036605,-300.0,0.00016553,2]
[350161035,1737663036614,-500.0,0.00016553,2]
[350161037,1737663036624,-500.0,0.00016553,2]
[350161039,1737663036634,-500.0,0.00016553,2]
[350161041,1737663036643,-500.0,0.00016553,2]
[350161043,1737663036654,-500.0,0.00016553,2]
[350161045,1737663036663,-500.0,0.00016553,2]
[350161047,1737663036673,-500.0,0.00016553,2]
[350161049,1737663036683,-500.0,0.00016553,2]
[350161052,1737663036693,-500.0,0.00016553,2]
[350161054,1737663036702,-500.0,0.00016553,2]
[350161056,1737663036712,-500.0,0.00016553,2]
[350161058,1737663036721,-500.0,0.00016553,2]
[350161060,1737663036731,-500.0,0.00016553,2]
[350161061,1737663036741,-500.0,0.00016553,2]
[350161063,1737663036751,-500.0,0.00016553,2]
[350161065,1737663036760,-642.64216897,0.00016553,2]
[350161067,1737663036770,-500.0,0.00016553,2]
[350161069,1737663036779,-429.95265698,0.00016553,2]
[350161071,1737663036789,-500.0,0.00016553,2]
[350161073,1737663036798,-217.10593801,0.00016553,2]
[350161074,1737663036811,-500.0,0.00016553,2]
[350161076,1737663036822,-500.0,0.00016553,2]
[350161078,1737663036831,-203.09948479,0.00016553,2]
[350161080,1737663036841,-500.0,0.00016553,2]
[350161082,1737663036851,-500.0,0.00016553,2]
[350161084,1737663036860,-563.5931448,0.00016553,2]
[350161086,1737663036870,-500.0,0.00016553,2]
[350161088,1737663036879,-500.0,0.00016553,2]
[350161090,1737663036889,-150.0,0.00016556,2]
[350161092,1737663036899,-210.60782525,0.0001657,2]
[350161094,1737663036909,-925.73424849,0.0001657,2]
[350161095,1737663036919,-200.0,0.00016573,2]
[350161097,1737663036928,-210.60782525,0.00016581,2]
[350161099,1737663036938,-925.73424849,0.00016583,2]
[350161101,1737663036948,-200.0,0.00016585,2]
[350161103,1737663036957,-189.67,0.00016588,2]
[350161105,1737663036967,-200.0,0.00016591,2]
[350161107,1737663036976,-925.73424849,0.00016603,2]
[350161109,1737663036986,-308.57808283,0.00016607,2]
[350161111,1737663036996,-308.57808283,0.00016608,2]
[350161113,1737663037005,-308.57808283,0.00016611,2]
[350161114,1737663037014,-1900.22603372,0.00016618,2]
[350161116,1737663037024,-1002.77319269,0.00016619,2]
[350161118,1737663037033,-1900.22603372,0.00016621,2]
[350161120,1737663037042,-1002.77319269,0.00016627,2]
[350161122,1737663037051,-200.0,0.0001663,2]
[350161124,1737663037066,-1900.22603372,0.00016633,2]
[350161126,1737663037076,-200.0,0.00016638,2]
[350161128,1737663037085,-925.73424849,0.00016647,2]
[350161130,1737663037095,-1002.77319269,0.0001665,2]
[350161132,1737663037105,-308.57808283,0.00016661,2]
[350161134,1737663037114,-1093.11928859,0.0001667,2]
[350161136,1737663037123,-200.0,0.00016671,2]
[350161138,1737663037132,-210.60782525,0.00016673,2]
[350161140,1737663037142,-1002.77319269,0.00016674,2]
[350161142,1737663037151,-1900.22603372,0.00016676,2]
[350161144,1737663037160,-200.0,0.00016681,2]
[350161146,1737663037169,-1002.77319269,0.00016681,2]
[350161148,1737663037178,-200.0,0.00016684,2]
[350161150,1737663037187,-925.73424849,0.00016688,2]
[350161152,1737663037196,-210.60782525,0.00016689,2]
[350161154,1737663037205,-1900.22603372,0.00016691,2]
[350161156,1737663037215,-308.57808283,0.00016693,2]
[350161158,1737663037225,-200.0,0.00016695,2]
[350161160,1737663037234,-210.60782525,0.00016697,2]
[350161162,1737663037243,-14580.81801744,0.00016727,2]
[350161164,1737663037257,-3379.56198256,0.00016727,2]
[350161166,1737663037267,-200.0,0.0001677,2]
[350161168,1737663037276,-500.0,0.00016826,2]
[350161170,1737663037285,-500.0,0.00016826,2]
[350161172,1737663037295,-500.0,0.00016826,2]
[350161174,1737663037305,-500.0,0.00016826,2]
[350161176,1737663037317,-500.0,0.00016826,2]
[350161178,1737663037327,-500.0,0.00016826,2]
[350161180,1737663037336,-500.0,0.00016826,2]
[350161182,1737663037346,-500.0,0.00016826,2]
[350161184,1737663037354,-500.0,0.00016827,2]
[350161186,1737663037366,-459.47571749,0.00016827,2]
[350161188,1737663037375,-312.29683843,0.00016827,2]
[350161190,1737663037384,-500.0,0.00016827,2]
[350161192,1737663037393,-500.0,0.00016827,2]
[350161194,1737663037403,-452.56487938,0.00016827,2]
[350161196,1737663037412,-500.0,0.00016827,2]
[350161198,1737663037421,-500.0,0.00016827,2]
[350161200,1737663037430,-500.0,0.00016827,2]
[350161202,1737663037439,-517.29758797,0.00016827,2]
[350161204,1737663037451,-500.0,0.00016827,2]
[350161206,1737663037460,-305.89045891,0.000169,2]
[350161208,1737663037469,-1093.1192885,0.00016916,2]
[350161209,1737663037478,-2405.5933,0.00017,2]
[350161212,1737663037489,-5000.0,0.00017,2]
[350161214,1737663037498,-966.428,0.00017019,2]
[350161215,1737663037507,-3903.0,0.00017019,2]
[350161217,1737663037516,-150.0,0.00017019,2]
[350161219,1737663037526,-1106.0,0.00017019,2]
[350161221,1737663037535,-305.89045864,0.00017072,2]
[350161223,1737663037544,-541.65,0.00017089,2]
[350161225,1737663037553,-436.756941,0.00017098,2]
[350161227,1737663037566,-500.0,0.00017098,2]
[350161229,1737663037575,-500.0,0.00017098,2]
[350161231,1737663037585,-500.0,0.00017098,2]
[350161233,1737663037594,-1066.43,0.00017098,2]
[350161235,1737663037603,-250.457545,0.00017098,2]
[350161237,1737663037612,-687.92,0.00017098,2]
[350161239,1737663037623,-500.0,0.00017098,2]
[350161241,1737663037633,-500.0,0.00017098,2]
[350161243,1737663037643,-500.0,0.00017098,2]
[350161245,1737663037652,-1105.11,0.00017098,2]
[350161248,1737663037669,-545.04,0.00017098,2]
[350161250,1737663037679,-500.0,0.00017098,2]
[350161252,1737663037690,-966.84,0.00017098,2]
[350161254,1737663037699,-802.44,0.00017098,2]
[350161256,1737663037709,-1221.4,0.00017098,2]
[350161258,1737663037719,-915.8,0.00017098,2]
[350161260,1737663037728,-500.0,0.00017098,2]
[350161262,1737663037738,-500.0,0.00017098,2]
[350161264,1737663037747,-818.19,0.00017098,2]
[350161266,1737663037756,-500.0,0.00017098,2]
[350161268,1737663037766,-500.0,0.00017098,2]
[350161270,1737663037776,-500.0,0.00017098,2]
[350161272,1737663037786,-590.81,0.00017098,2]
[350161274,1737663037796,-1028.09,0.00017098,2]
[350161276,1737663037806,-500.0,0.00017098,2]
[350161278,1737663037821,-1895.31,0.00017098,2]
[350161280,1737663037830,-500.0,0.00017098,2]
[350161282,1737663037840,-1142.56,0.00017098,2]
[350161284,1737663037851,-777.56,0.00017098,2]
[350161286,1737663037861,-500.0,0.00017098,2]
[350161288,1737663037872,-500.0,0.00017098,2]
[350161290,1737663037881,-639.04,0.00017098,2]
[350161293,1737663037891,-500.0,0.00017098,2]
[350161295,1737663037901,-885.5,0.00017098,2]
[350161297,1737663037911,-500.0,0.00017098,2]
[350161298,1737663037921,-500.0,0.00017098,2]
[350161301,1737663037931,-500.0,0.00017098,2]
[350161302,1737663037941,-500.0,0.00017098,2]
[350161304,1737663037950,-500.0,0.00017098,2]
[350161306,1737663037960,-1025.47,0.00017098,2]
[350161308,1737663037969,-574.37,0.00017098,2]
[350161310,1737663037979,-891.66,0.00017098,2]
[350161312,1737663037989,-500.0,0.00017098,2]
[350161314,1737663037998,-500.0,0.00017098,2]
[350161316,1737663038007,-500.0,0.00017098,2]
[350161318,1737663038017,-500.0,0.00017098,2]
[350161320,1737663038026,-500.0,0.00017098,2]
[350161322,1737663038035,-1166.75,0.00017098,2]
[350161324,1737663038045,-511.15,0.00017098,2]
[350161326,1737663038054,-500.0,0.00017098,2]
[350161328,1737663038066,-602.79399231,0.00017098,2]
[350161330,1737663038076,-500.0,0.00017098,2]
[350161332,1737663038086,-500.0,0.00017098,2]
[350161334,1737663038095,-1233.17,0.00017098,2]
[350161336,1737663038105,-188.134411,0.00017098,2]
[350161338,1737663038114,-642.77857646,0.00017098,2]
[350161340,1737663038123,-774.62,0.00017098,2]
[350161359,1737663038285,-509.53,0.00017098,2]
[350161361,1737663038295,-609.98,0.00017098,2]
[350161363,1737663038305,-500.0,0.00017098,2]
[350161365,1737663038318,-500.0,0.00017098,2]
[350161366,1737663038328,-822.56,0.00017098,2]
[350161367,1737663038338,-500.0,0.00017098,2]
[350161368,1737663038347,-500.0,0.00017098,2]
[350161369,1737663038356,-500.0,0.00017098,2]
[350161370,1737663038366,-872.62,0.00017098,2]
[350161371,1737663038375,-500.0,0.00017098,2]
[350161372,1737663038384,-500.0,0.00017098,2]
[350161373,1737663038393,-500.0,0.00017099,2]
[350161374,1737663038403,-596.2,0.00017099,2]
[350161375,1737663038412,-409.92520004,0.00017099,2]
[350161376,1737663038421,-500.0,0.00017099,2]
[350161378,1737663038431,-500.0,0.00017099,2]
[350161380,1737663038440,-500.0,0.00017099,2]
[350161382,1737663038450,-276.28,0.00017099,2]
[350161384,1737663038463,-500.0,0.00017099,2]
[350161386,1737663038473,-500.0,0.00017099,2]
[350161389,1737663038483,-500.0,0.00017099,2]
[350161391,1737663038493,-171.81170976,0.00017099,2]
[350161393,1737663038503,-289.53006669,0.00017099,2]
[350161395,1737663038512,-500.0,0.00017099,2]
[350161397,1737663038522,-500.0,0.00017099,2]
[350161399,1737663038532,-500.0,0.00017099,2]
[350161401,1737663038542,-500.0,0.00017099,2]
[350161403,1737663038551,-500.0,0.00017099,2]
[350161405,1737663038563,-500.0,0.00017099,2]
[350161407,1737663038573,-500.0,0.00017099,2]
[350161409,1737663038583,-500.0,0.00017099,2]
[350161411,1737663038592,-500.0,0.00017099,2]
[350161413,1737663038602,-500.0,0.00017099,2]
[350161415,1737663038611,-300.30596388,0.00017099,2]
[350161417,1737663038620,-500.0,0.00017099,2]
[350161419,1737663038629,-500.0,0.00017099,2]
[350161421,1737663038639,-500.0,0.00017099,2]
[350161423,1737663038648,-500.0,0.00017099,2]
[350161425,1737663038657,-500.0,0.00017099,2]
[350161427,1737663038666,-500.0,0.00017099,2]
[350161429,1737663038676,-197.74470323,0.00017099,2]
[350161431,1737663038685,-500.0,0.00017099,2]
[350161433,1737663038694,-500.0,0.00017099,2]
[350161435,1737663038704,-508.86,0.00017099,2]
[350161437,1737663038713,-500.0,0.00017099,2]
[350161439,1737663038722,-500.0,0.00017099,2]
[350161441,1737663038731,-500.0,0.00017099,2]
[350161443,1737663038740,-500.0,0.00017099,2]
[350161445,1737663038749,-500.0,0.00017099,2]
[350161447,1737663038759,-500.0,0.00017099,2]
[350161449,1737663038769,-500.0,0.00017099,2]
[350161451,1737663038778,-500.0,0.00017099,2]
[350161453,1737663038787,-648.68353685,0.00017099,2]
[350161455,1737663038796,-426.65543443,0.00017099,2]
[350161456,1737663038806,-500.0,0.00017099,2]
[350161458,1737663038819,-500.0,0.00017099,2]
[350161459,1737663038828,-471.9,0.00017099,2]
[350161460,1737663038841,-500.0,0.00017099,2]
[350161461,1737663038851,-500.0,0.00017099,2]
[350161462,1737663038860,-500.0,0.00017099,2]
[350161463,1737663038870,-500.0,0.00017099,2]
[350161464,1737663038880,-500.0,0.00017099,2]
[350161465,1737663038889,-500.0,0.00017099,2]
[350161466,1737663038899,-514.66,0.00017099,2]
[350161467,1737663038908,-500.0,0.00017099,2]
[350161468,1737663038918,-500.0,0.00017099,2]
[350161469,1737663038927,-234.65972169,0.00017099,2]
[350161470,1737663038937,-500.0,0.00017099,2]
[350161472,1737663038946,-500.0,0.00017099,2]
[350161474,1737663038956,-500.0,0.00017099,2]
[350161475,1737663038965,-500.0,0.00017099,2]
[350161476,1737663038974,-500.0,0.00017099,2]
[350161477,1737663038983,-357.0438408,0.00017099,2]
[350161478,1737663038993,-500.0,0.00017099,2]
[350161479,1737663039002,-500.0,0.00017099,2]
[350161480,1737663039011,-500.0,0.00017099,2]
[350161481,1737663039021,-500.0,0.00017099,2]
[350161482,1737663039030,-500.0,0.00017099,2]
[350161483,1737663039039,-500.0,0.00017099,2]
[350161484,1737663039049,-500.0,0.00017099,2]
[350161485,1737663039059,-500.0,0.00017099,2]
[350161486,1737663039070,-500.0,0.00017099,2]
[350161487,1737663039079,-500.0,0.00017099,2]
[350161488,1737663039089,-500.0,0.00017099,2]
[350161489,1737663039098,-500.0,0.00017099,2]
[350161490,1737663039107,-500.0,0.00017099,2]
[350161491,1737663039117,-500.0,0.00017099,2]
[350161493,1737663039126,-340.29794732,0.00017099,2]
[350161495,1737663039135,-500.0,0.00017099,2]
[350161497,1737663039144,-500.0,0.00017099,2]
[350161499,1737663039153,-160.57403485,0.00017099,2]
[350161501,1737663039162,-500.0,0.00017099,2]
[350161503,1737663039172,-500.0,0.00017099,2]
[350161505,1737663039181,-500.0,0.00017099,2]
[350161507,1737663039190,-500.0,0.00017099,2]
[350161509,1737663039199,-500.0,0.00017099,2]
[350161511,1737663039208,-500.0,0.00017099,2]
[350161513,1737663039217,-277.53841886,0.00017099,2]
[350161515,1737663039227,-500.0,0.00017099,2]
[350161517,1737663039236,-500.0,0.00017099,2]
[350161519,1737663039245,-500.0,0.00017099,2]
[350161521,1737663039254,-500.0,0.00017099,2]
[350161523,1737663039264,-500.0,0.00017099,2]
[350161525,1737663039274,-500.0,0.00017099,2]
[350161527,1737663039283,-500.0,0.00017099,2]
[350161529,1737663039293,-500.0,0.00017099,2]
[350161531,1737663039302,-500.0,0.00017099,2]
[350161533,1737663039317,-500.0,0.00017099,2]
[350161535,1737663039326,-500.0,0.00017099,2]
[350161537,1737663039336,-500.0,0.00017099,2]
[350161539,1737663039345,-500.0,0.00017099,2]
[350161540,1737663039354,-500.0,0.00017099,2]
[350161542,1737663039363,-500.0,0.00017099,2]
[350161544,1737663039372,-502.34973808,0.00017099,2]
[350161545,1737663039382,-500.0,0.00017099,2]
[350161547,1737663039391,-500.0,0.00017099,2]
[350161549,1737663039401,-500.0,0.00017099,2]
[350161551,1737663039410,-500.0,0.00017099,2]
[350161552,1737663039419,-501.52072772,0.00017099,2]
[350161554,1737663039428,-500.0,0.00017099,2]
[350161556,1737663039437,-295.6794257,0.00017099,2]
[350161558,1737663039447,-649.56933599,0.00017099,2]
[350161559,1737663039460,-500.0,0.00017099,2]
[350161561,1737663039469,-500.0,0.00017099,2]
[350161563,1737663039478,-501.11363694,0.00017099,2]
[350161564,1737663039487,-500.0,0.00017099,2]
[350161566,1737663039497,-500.0,0.00017099,2]
[350161568,1737663039506,-500.0,0.00017099,2]
[350161569,1737663039515,-500.0,0.00017099,2]
[350161571,1737663039528,-500.0,0.00017099,2]
[350161573,1737663039537,-500.0,0.00017099,2]
[350161574,1737663039547,-500.0,0.00017099,2]
[350161576,1737663039556,-500.0,0.00017099,2]
[350161578,1737663039568,-500.0,0.00017099,2]
[350161580,1737663039577,-500.0,0.00017099,2]
[350161581,1737663039587,-500.0,0.00017099,2]
[350161583,1737663039596,-500.0,0.00017099,2]
[350161585,1737663039611,-500.0,0.00017099,2]
[350161587,1737663039620,-347.63221302,0.00017099,2]
[350161589,1737663039630,-500.0,0.00017099,2]
[350161591,1737663039639,-500.0,0.00017099,2]
[350161593,1737663039649,-500.0,0.00017099,2]
[350161594,1737663039658,-500.0,0.00017099,2]
[350161596,1737663039668,-500.0,0.00017099,2]
[350161598,1737663039677,-500.0,0.00017099,2]
[350161600,1737663039687,-500.0,0.00017099,2]
[350161601,1737663039696,-500.0,0.00017099,2]
[350161603,1737663039705,-613.90448665,0.00017099,2]
[350161605,1737663039714,-500.0,0.00017099,2]
[350161607,1737663039724,-500.0,0.00017099,2]
[350161608,1737663039733,-500.0,0.00017099,2]
[350161610,1737663039742,-500.0,0.00017099,2]
[350161612,1737663039751,-500.0,0.00017099,2]
[350161615,1737663039761,-500.0,0.00017099,2]
[350161617,1737663039771,-502.29605104,0.00017099,2]
[350161618,1737663039780,-504.29210305,0.00017099,2]
[350161620,1737663039790,-500.0,0.00017099,2]
[350161622,1737663039799,-500.0,0.00017099,2]
[350161624,1737663039808,-500.0,0.00017099,2]
[350161626,1737663039820,-500.0,0.00017099,2]
[350161627,1737663039830,-500.0,0.00017099,2]
[350161629,1737663039839,-500.0,0.00017099,2]
[350161631,1737663039848,-500.0,0.00017099,2]
[350161633,1737663039857,-500.0,0.00017099,2]
[350161635,1737663039867,-500.0,0.00017099,2]
[350161637,1737663039876,-500.0,0.00017099,2]
[350161638,1737663039886,-583.46291414,0.00017099,2]
[350161640,1737663039896,-500.0,0.00017099,2]
[350161642,1737663039905,-500.0,0.00017099,2]
[350161645,1737663039915,-505.03813631,0.00017099,2]
[350161648,1737663039924,-500.0,0.00017099,2]
[350161651,1737663039934,-500.0,0.00017099,2]
[350161654,1737663039943,-500.0,0.00017099,2]
[350161656,1737663039952,-500.0,0.00017099,2]
[350161659,1737663039962,-500.0,0.00017099,2]
[350161661,1737663039972,-500.0,0.00017099,2]
[350161663,1737663039981,-476.29932465,0.00017099,2]
[350161665,1737663039990,-500.0,0.00017099,2]
[350161668,1737663040000,-500.0,0.00017099,2]
[350161669,1737663040010,-500.0,0.00017099,2]
[350161671,1737663040019,-500.0,0.00017099,2]
[350161673,1737663040028,-500.0,0.00017099,2]
[350161675,1737663040037,-500.0,0.00017099,2]
[350161677,1737663040046,-500.0,0.00017099,2]
[350161678,1737663040056,-500.0,0.00017099,2]
[350161680,1737663040066,-500.0,0.00017099,2]
[350161682,1737663040075,-500.0,0.00017099,2]
[350161684,1737663040084,-500.0,0.00017099,2]
[350161686,1737663040093,-510.12,0.00017099,2]
[350161688,1737663040103,-500.0,0.00017099,2]
[350161689,1737663040112,-500.0,0.00017099,2]
[350161692,1737663040130,-500.0,0.00017099,2]
[350161694,1737663040141,-500.0,0.00017099,2]
[350161696,1737663040151,-500.0,0.00017099,2]
[350161698,1737663040160,-500.0,0.00017099,2]
[350161700,1737663040170,-500.0,0.00017099,2]
[350161702,1737663040179,-1168.37,0.00017099,2]
[350161703,1737663040188,-500.0,0.00017099,2]
[350161705,1737663040198,-500.0,0.00017099,2]
[350161707,1737663040207,-539.32198703,0.00017099,2]
[350161709,1737663040216,-357.22142354,0.00017099,2]
[350161711,1737663040225,-264.569998,0.00017099,2]
[350161713,1737663040235,-500.0,0.00017099,2]
[350161715,1737663040244,-500.0,0.00017099,2]
[350161717,1737663040253,-500.0,0.00017099,2]
[350161718,1737663040263,-500.0,0.00017099,2]
[350161720,1737663040272,-500.0,0.00017099,2]
[350161722,1737663040281,-500.0,0.00017099,2]
[350161724,1737663040290,-500.0,0.00017099,2]
[350161726,1737663040300,-866.43,0.00017099,2]
[350161728,1737663040309,-500.0,0.00017099,2]
[350161729,1737663040320,-500.0,0.00017099,2]
[350161731,1737663040329,-500.0,0.00017099,2]
[350161733,1737663040338,-500.0,0.00017099,2]
[350161735,1737663040348,-500.0,0.00017099,2]
[350161737,1737663040357,-500.0,0.00017099,2]
[350161739,1737663040367,-500.0,0.00017099,2]
[350161741,1737663040376,-500.0,0.00017099,2]
[350161743,1737663040385,-500.0,0.00017099,2]
[350161745,1737663040394,-500.0,0.00017099,2]
[350161747,1737663040404,-500.0,0.00017099,2]
[350161749,1737663040413,-500.0,0.00017099,2]
[350161751,1737663040422,-500.0,0.00017099,2]
[350161753,1737663040431,-500.0,0.00017099,2]
[350161755,1737663040440,-1920.41,0.00017099,2]
[350161757,1737663040451,-500.0,0.00017099,2]
[350161758,1737663040463,-500.0,0.00017099,2]
[350161759,1737663040473,-516.34,0.00017099,2]
[350161760,1737663040482,-500.0,0.00017099,2]
[350161761,1737663040491,-500.0,0.00017099,2]
[350161762,1737663040501,-500.0,0.00017099,2]
[350161763,1737663040510,-500.0,0.00017099,2]
[350161764,1737663040519,-500.0,0.00017099,2]
[350161765,1737663040528,-500.0,0.00017099,2]
[350161766,1737663040537,-500.0,0.00017099,2]
[350161767,1737663040546,-500.0,0.00017099,2]
[350161768,1737663040555,-500.0,0.00017099,2]
[350161769,1737663040566,-749.11,0.00017099,2]
[350161770,1737663040575,-500.0,0.00017099,2]
[350161772,1737663040584,-500.0,0.00017099,2]
[350161773,1737663040593,-426.14099386,0.00017099,2]
[350161776,1737663040603,-500.0,0.00017099,2]
[350161778,1737663040613,-500.0,0.00017099,2]
[350161780,1737663040623,-500.0,0.00017099,2]
[350161782,1737663040632,-500.0,0.00017099,2]
[350161784,1737663040642,-500.0,0.00017099,2]
[350161792,1737663040713,-500.0,0.00017099,2]
[350161794,1737663040723,-500.0,0.00017099,2]
[350161796,1737663040732,-500.0,0.00017099,2]
[350161798,1737663040742,-500.0,0.00017099,2]
[350161800,1737663040750,-500.0,0.00017099,2]
[350161802,1737663040759,-500.0,0.00017099,2]
[350161804,1737663040768,-500.0,0.00017099,2]
[350161806,1737663040778,-500.0,0.00017099,2]
[350161808,1737663040788,-500.0,0.00017099,2]
[350161810,1737663040797,-527.54,0.00017099,2]
[350161812,1737663040809,-500.0,0.00017099,2]
[350161815,1737663040820,-500.0,0.00017099,2]
[350161817,1737663040830,-500.0,0.00017099,2]
[350161818,1737663040839,-500.0,0.00017099,2]
[350161821,1737663040848,-188.04104638,0.00017099,2]
[350161823,1737663040857,-500.0,0.00017099,2]
[350161824,1737663040866,-500.0,0.00017099,2]
[350161826,1737663040875,-500.0,0.00017099,2]
[350161828,1737663040884,-500.0,0.00017099,2]
[350161830,1737663040894,-500.0,0.00017099,2]
[350161832,1737663040903,-1608.71,0.00017099,2]
[350161834,1737663040912,-500.0,0.00017099,2]
[350161836,1737663040922,-500.0,0.00017099,2]
[350161838,1737663040931,-500.0,0.00017099,2]
[350161840,1737663040940,-500.0,0.00017099,2]
[350161842,1737663040950,-500.0,0.00017099,2]
[350161844,1737663040959,-500.0,0.00017099,2]
[350161846,1737663040967,-504.14107082,0.00017099,2]
[350161848,1737663040977,-500.0,0.00017099,2]
[350161850,1737663040986,-500.0,0.00017099,2]
[350161852,1737663040995,-500.0,0.00017099,2]
[350161854,1737663041005,-500.0,0.00017099,2]
[350161856,1737663041014,-500.0,0.00017099,2]
[350161858,1737663041022,-500.0,0.00017099,2]
[350161860,1737663041032,-500.0,0.00017099,2]
[350161862,1737663041041,-403.94299556,0.00017099,2]
[350161864,1737663041050,-500.0,0.00017099,2]
[350161866,1737663041060,-500.0,0.00017099,2]
[350161868,1737663041072,-500.0,0.00017099,2]
[350161870,1737663041081,-500.0,0.00017099,2]
[350161872,1737663041090,-500.0,0.00017099,2]
[350161874,1737663041099,-500.0,0.00017099,2]
[350161876,1737663041108,-500.0,0.00017099,2]
[350161878,1737663041118,-500.0,0.00017099,2]
[350161880,1737663041127,-532.94,0.00017099,2]
[350161882,1737663041137,-500.0,0.00017099,2]
[350161884,1737663041146,-500.0,0.00017099,2]
[350161886,1737663041156,-475.56438046,0.00017099,2]
[350161888,1737663041165,-642.37006128,0.00017099,2]
[350161890,1737663041175,-500.0,0.00017099,2]
[350161892,1737663041184,-515.32,0.00017099,2]
[350161894,1737663041193,-500.0,0.00017099,2]
[350161896,1737663041202,-375.3359116,0.00017099,2]
[350161898,1737663041212,-500.0,0.00017099,2]
[350161900,1737663041221,-500.0,0.00017099,2]
[350161902,1737663041231,-500.0,0.00017099,2]
[350161904,1737663041240,-500.0,0.00017099,2]
[350161906,1737663041249,-211.59012291,0.00017099,2]
[350161908,1737663041258,-500.0,0.00017099,2]
[350161910,1737663041267,-500.0,0.00017099,2]
[350161912,1737663041276,-500.0,0.00017099,2]
[350161914,1737663041285,-500.0,0.00017099,2]
[350161916,1737663041294,-500.0,0.00017099,2]
[350161918,1737663041303,-603.13,0.00017099,2]
[350161920,1737663041316,-971.5,0.00017099,2]
[350161922,1737663041325,-500.0,0.00017099,2]
[350161924,1737663041334,-500.0,0.00017099,2]
[350161926,1737663041342,-2127.17,0.00017099,2]
[350161928,1737663041351,-500.0,0.00017099,2]
[350161930,1737663041360,-500.0,0.00017099,2]
[350161932,1737663041369,-500.0,0.00017099,2]
[350161934,1737663041378,-500.0,0.00017099,2]
[350161936,1737663041387,-579.36,0.000171,2]
[350161938,1737663041396,-314.0723009,0.000171,2]